bitfinex-derivatives/quotes_ETHF0:USTF0_20260120
["timestamp","ask_amount","ask_price","bid_price","bid_amount"]
[1768910118678,0.00368258,3114.3,3112.9,0.33656689]
[1768910120977,0.16438258,3114.3,3112.9,0.33656689]
[1768910121179,0.50065418,3114.3,3112.9,0.33656689]
[1768910128276,0.16438258,3114.3,3112.9,0.33656689]
[1768910130183,0.49209768,3114.3,3112.9,0.33656689]
[1768910135579,0.49209768,3114.3,3112.9,4.34550685]
[1768910138985,1.70402104,3114.3,3112.9,4.34550685]
[1768910139480,0.1607,3114.2,3112.9,4.34550685]
[1768910139789,1.21192336,3114.0,3112.8,4.00893996]
[1768910141087,1.21192336,3114.1,3112.8,4.33054837]
[1768910142393,1.21192336,3114.1,3112.9,4.00893996]
[1768910144487,1.21192336,3114.1,3112.9,4.34233129]
[1768910145298,1.21192336,3113.5,3112.9,4.00893996]
[1768910145494,1.21192336,3114.0,3112.9,4.00893996]
[1768910145791,1.53803485,3114.2,3112.9,0.33339133]
[1768910147990,0.00368258,3114.3,3112.9,0.33339133]
[1768910155518,0.00368258,3114.3,3113.0,0.33383919]
[1768910156013,0.00368258,3114.3,3113.2,0.33383919]
[1768910158308,1.21560594,3114.3,3113.2,0.33383919]
[1768910159810,1.21560594,3114.3,3112.9,4.00893996]
[1768910160522,0.00368258,3114.3,3112.9,4.00893996]
[1768910160720,0.00368258,3114.3,3112.9,4.34277915]
[1768910160916,0.00368258,3114.3,3113.0,0.33383919]
[1768910161921,0.00368258,3114.3,3113.0,4.34277915]
[1768910163123,0.00368258,3114.3,3113.1,0.33383919]
[1768910173527,1.21560594,3114.3,3113.1,0.33383919]
[1768910176633,0.00368258,3114.3,3113.1,0.33383919]
[1768910176832,1.21192336,3114.2,3113.1,0.33383919]
[1768910177333,1.21192336,3114.2,3113.1,4.34277915]
[1768910177833,1.21192336,3113.9,3113.1,4.00893996]
[1768910178226,1.21192336,3113.9,3112.7,0.49461919]
[1768910179227,1.21192336,3113.9,3112.8,0.33383919]
[1768910179531,0.16438258,3114.3,3112.8,0.33383919]
[1768910179731,1.21192336,3114.2,3112.8,0.33383919]
[1768910182836,1.37262336,3114.2,3112.8,0.33383919]
[1768910183335,1.21192336,3114.1,3112.8,0.33383919]
[1768910184038,0.1607,3114.2,3112.8,0.33383919]
[1768910184239,1.21192336,3114.1,3112.8,0.33383919]
[1768910186938,1.52745494,3114.1,3112.8,0.33383919]
[1768910188034,1.21192336,3113.8,3112.7,4.00893996]
[1768910188231,1.21192336,3113.8,3112.5,4.00893996]
[1768910189041,1.52745494,3113.8,3112.5,4.00893996]
[1768910189540,1.52745494,3113.8,3112.4,1.53723019]
[1768910189944,1.52745494,3113.8,3112.4,0.32530683]
[1768910195442,0.31553158,3113.7,3112.4,0.32530683]
[1768910195643,1.21192336,3113.5,3112.2,5.38167332]
[1768910196153,1.21192336,3113.6,3112.2,5.38167332]
[1768910198348,1.21192336,3113.6,3112.4,4.00893996]
[1768910199850,0.16072,3113.8,3112.4,4.00893996]
[1768910199851,0.31553158,3114.1,3112.5,0.32530683]
[1768910200156,1.52745494,3114.1,3112.5,0.32530683]
[1768910200947,0.31553158,3114.1,3112.5,0.32530683]
[1768910201646,0.1607,3114.2,3112.6,0.32530683]
[1768910201959,0.1607,3114.2,3112.8,0.32530683]
[1768910205357,0.32910807,3114.1,3112.7,4.00893996]
[1768910205553,0.32910807,3114.1,3112.6,4.00893996]
[1768910206055,0.32910807,3114.1,3112.5,4.00893996]
[1768910206557,0.32910807,3114.1,3112.6,4.00893996]
[1768910207261,0.48981807,3114.1,3112.6,4.00893996]
[1768910207556,0.32910807,3114.0,3112.6,4.00893996]
[1768910211362,0.48981807,3114.0,3112.6,4.00893996]
[1768910211661,0.48981807,3114.0,3112.5,4.00893996]
[1768910211847,0.32910807,3114.0,3112.5,4.00893996]
[1768910212053,0.16072,3113.9,3112.5,4.00893996]
[1768910212454,0.16072,3113.8,3112.5,4.00893996]
[1768910212655,0.16073,3113.7,3112.5,4.00893996]
[1768910212964,0.16073,3113.7,3112.4,4.00893996]
[1768910215363,0.16073,3113.7,3112.5,4.00893996]
[1768910217962,0.16074,3113.5,3112.5,4.00893996]
[1768910218158,0.16074,3113.5,3112.3,0.3139159]
[1768910221263,0.16074,3113.4,3112.3,0.3139159]
[1768910223268,0.16075,3113.3,3112.3,0.3139159]
[1768910223467,0.16075,3113.3,3111.9,4.32546488]
[1768910223669,0.16075,3113.3,3112.0,0.31652492]
[1768910228272,0.16075,3113.3,3112.1,0.31652492]
[1768910242380,0.16075,3113.2,3112.0,4.00893996]
[1768910242586,0.16075,3113.2,3112.0,0.31652492]
[1768910245295,0.16075,3113.2,3112.0,4.32546488]
[1768910245692,0.16075,3113.2,3112.1,0.30509966]
[1768910246895,0.16075,3113.2,3112.1,4.31403962]
[1768910247097,0.16075,3113.2,3112.2,0.30509966]
[1768910250499,0.16075,3113.2,3112.1,4.00893996]
[1768910250804,0.49111718,3113.2,3112.1,4.00893996]
[1768910251002,0.49111718,3113.2,3111.8,0.30509966]
[1768910251003,0.49111718,3113.2,3111.8,4.31403962]
[1768910253802,0.16075,3113.2,3111.9,0.30509966]
[1768910260610,0.16075,3113.2,3111.9,4.31403962]
[1768910260808,0.16076,3113.1,3111.9,4.31403962]
[1768910266109,0.16076,3113.1,3112.0,0.31046436]
[1768910267409,0.16073,3113.6,3112.3,0.31046436]
[1768910267713,0.16073,3113.6,3112.4,0.31046436]
[1768910268412,0.16073,3113.6,3112.5,4.00893996]
[1768910268913,0.16073,3113.6,3112.4,4.31940432]
[1768910269104,0.16073,3113.6,3112.4,0.31046436]
[1768910272009,0.16073,3113.6,3112.3,4.00893996]
[1768910272010,1.21274322,3113.2,3112.3,4.00893996]
[1768910272414,1.21274322,3113.2,3112.0,4.31940432]
[1768910276719,1.21274322,3113.2,3112.0,0.31046436]
[1768910280722,1.21274322,3112.9,3111.9,4.00893996]
[1768910280925,1.21274322,3112.9,3111.7,4.00893996]
[1768910280926,1.21274322,3112.3,3111.7,4.00893996]
[1768910281218,1.21274322,3112.3,3111.7,3.51229186]
[1768910281424,1.21274322,3112.3,3111.5,0.00403529]
[1768910282223,0.16078,3112.8,3111.5,0.00403529]
[1768910282424,1.21274322,3112.6,3111.5,0.00403529]
[1768910290737,3.215,3113.9,3111.5,0.00403529]
[1768910290738,1.21274322,3112.3,3111.5,0.00403529]
[1768910291627,1.7024541,3112.5,3111.5,0.00403529]
[1768910292926,1.21274322,3111.9,3111.0,4.03249212]
[1768910293327,1.21274322,3111.9,3110.8,0.3125224]
[1768910293328,1.21274322,3111.6,3110.6,4.03249212]
[1768910293533,1.7024741,3112.1,3110.6,4.03249212]
[1768910293732,1.7024741,3112.1,3110.7,1.21274322]
[1768910293927,1.70492163,3112.1,3110.7,1.21565371]
[1768910294635,1.70492163,3112.1,3110.7,0.00291049]
[1768910295936,1.21274322,3112.0,3110.7,0.00291049]
[1768910296438,1.5416641,3112.0,3110.7,0.00291049]
[1768910296631,1.21274322,3111.7,3110.7,0.00291049]
[1768910296831,1.21274322,3111.4,3110.7,0.00291049]
[1768910297232,1.21274322,3111.7,3110.7,0.00291049]
[1768910298241,0.16082,3112.0,3110.7,1.52817611]
[1768910302445,1.21274322,3111.9,3110.7,1.52817611]
[1768910303446,1.21274322,3111.9,3110.7,0.31543289]
[1768910309653,1.53564995,3111.9,3110.7,0.00291049]
[1768910311056,0.32290673,3111.8,3110.7,0.00291049]
[1768910314654,1.21274322,3111.6,3110.7,0.00291049]
[1768910316052,0.32290673,3111.8,3110.7,0.00291049]
[1768910316348,1.21274322,3111.7,3110.7,0.00291049]
[1768910317758,1.53564995,3111.7,3110.7,0.00291049]
[1768910322954,0.32290673,3111.7,3110.7,0.00291049]
[1768910323757,1.50194785,3111.2,3109.7,7.7034786]
[1768910324362,0.28799553,3111.2,3109.7,0.4674555]
[1768910324754,0.28799553,3111.2,3109.7,0.47141857]
[1768910326759,0.28799553,3111.2,3109.8,0.3065255]
[1768910326966,0.16084,3111.5,3109.8,0.3065255]
[1768910327165,0.44883553,3111.5,3109.8,0.3065255]
[1768910328066,0.28799553,3111.4,3109.8,0.3065255]
[1768910330570,0.28799553,3111.3,3109.8,0.3065255]
[1768910332269,0.28799553,3111.2,3109.8,0.3065255]
[1768910337474,0.28799553,3111.2,3109.7,0.00396307]
[1768910337677,0.29965672,3110.8,3109.7,0.00396307]
[1768910337971,1.21395232,3110.9,3109.7,0.00396307]
[1768910338574,1.37484232,3110.9,3109.7,0.00396307]
[1768910338775,1.67449904,3110.9,3109.7,0.00396307]
[1768910339968,0.29965672,3110.8,3109.7,0.00396307]
[1768910342274,0.29965672,3110.7,3109.7,0.00396307]
[1768910352184,0.16089,3110.8,3109.7,0.00396307]
[1768910353496,0.46054672,3110.8,3109.7,0.00396307]
[1768910363088,0.29965672,3110.7,3109.7,0.00396307]
[1768910369692,0.16089,3110.8,3109.7,0.00396307]
[1768910372296,0.16089,3110.8,3109.5,0.23833984]
[1768910373297,0.16089,3110.8,3109.5,0.24083567]
[1768910377800,0.46218356,3110.8,3109.5,0.24083567]
[1768910378490,0.46218356,3110.8,3109.5,0.00249583]
[1768910380808,0.30129356,3110.7,3109.5,0.00249583]
[1768910384909,1.51596293,3110.7,3109.5,0.00249583]
[1768910389608,1.21466937,3111.0,3109.5,1.2171652]
[1768910389807,1.49642163,3111.0,3109.5,0.00249583]
[1768910390010,0.28175226,3110.9,3109.5,0.00249583]
[1768910391408,0.28175226,3110.9,3109.7,1.21466937]
[1768910392706,0.28175226,3110.9,3109.8,4.04521285]
[1768910393613,0.28175226,3110.9,3109.7,5.25988222]
[1768910396317,0.2925923,3111.2,3109.7,5.55091851]
[1768910397515,0.2925923,3111.2,3109.7,4.33624914]
[1768910397816,0.2925923,3111.2,3109.7,5.55091851]
[1768910398817,0.2925923,3111.2,3109.8,0.29103629]
[1768910399316,0.2925923,3111.2,3109.9,1.21466937]
[1768910400715,1.21466937,3111.7,3110.3,0.29103629]
[1768910400909,1.50726167,3111.7,3110.3,0.29103629]
[1768910401408,0.2925923,3111.7,3110.3,0.29103629]
[1768910402115,0.2925923,3111.7,3110.3,15.19103629]
[1768910403220,1.50726167,3111.6,3110.3,14.9]
[1768910403421,1.21466937,3111.0,3110.2,4.04521285]
[1768910403805,0.2925923,3111.2,3109.9,1.21466937]
[1768910404108,0.16085,3111.8,3109.7,12.80235835]
[1768910404109,0.2925923,3111.6,3110.2,1.21466937]
[1768910404506,1.21466937,3111.7,3110.3,0.29103629]
[1768910405015,1.50726167,3111.7,3110.3,0.29103629]
[1768910405214,0.2925923,3111.6,3110.2,1.21466937]
[1768910405416,0.2925923,3111.6,3110.2,1.50570566]
[1768910405816,1.50726167,3111.4,3110.0,0.16093]
[1768910407119,1.21466937,3111.7,3110.2,1.21466937]
[1768910407421,1.50726167,3111.7,3110.2,1.21466937]
[1768910407612,0.2925923,3111.6,3110.2,1.21466937]
[1768910408121,0.2925923,3111.6,3110.0,0.45196629]
[1768910408419,0.2925923,3111.6,3110.1,1.21466937]
[1768910409308,1.21466937,3111.5,3110.1,1.21466937]
[1768910409518,0.2925923,3111.4,3110.0,0.16093]
[1768910413631,0.2925923,3111.4,3110.0,1.37559937]
[1768910415834,1.50726167,3111.2,3109.9,0.29103629]
[1768910416933,0.2925923,3111.1,3109.8,14.9]
[1768910417426,1.50726167,3111.1,3109.8,14.9]
[1768910417732,1.50726167,3111.1,3109.7,2.537]
[1768910418133,1.21466937,3110.8,3109.5,0.45449212]
[1768910418332,1.21466937,3110.5,3109.5,0.00249583]
[1768910419528,1.50726167,3110.5,3109.5,0.00249583]
[1768910422536,0.2925923,3110.4,3109.5,0.00249583]
[1768910423234,0.2791921,3110.2,3109.5,0.00249583]
[1768910423537,1.49386147,3110.0,3108.7,0.29914319]
[1768910423736,0.2791921,3109.9,3108.6,2.538]
[1768910424336,0.2791921,3109.9,3108.6,14.9]
[1768910424536,0.28273116,3109.9,3108.6,14.90237781]
[1768910425335,1.21466937,3109.4,3108.6,14.90237781]
[1768910425531,1.21466937,3109.4,3108.6,0.00237781]
[1768910425730,1.49386147,3109.7,3108.6,0.00237781]
[1768910425926,0.2791921,3109.7,3108.6,0.00237781]
[1768910437249,0.00353906,3109.9,3108.6,0.00237781]
[1768910438049,0.28273116,3109.9,3108.6,0.00237781]
[1768910442856,0.28273116,3109.9,3108.7,1.21466937]
[1768910443257,0.00353906,3109.9,3109.0,1.21466937]
[1768910443464,1.50474466,3110.8,3109.3,1.21466937]
[1768910443654,0.29007529,3110.8,3109.6,1.21466937]
[1768910443855,0.29007529,3111.2,3109.9,1.21466937]
[1768910444656,0.29254273,3111.2,3109.9,1.21466937]
[1768910444856,0.29254273,3111.2,3109.7,0.30210857]
[1768910445159,0.00246744,3111.2,3110.0,0.30210857]
[1768910445765,0.00246744,3111.2,3110.0,0.46303857]
[1768910445967,0.00246744,3111.2,3110.1,0.30210857]
[1768910453468,0.00246744,3111.2,3110.1,0.46303857]
[1768910453667,0.00246744,3111.2,3110.2,0.30227646]
[1768910453967,0.27569629,3112.1,3110.4,0.30227646]
[1768910454456,0.27569629,3112.1,3110.4,0.16091]
[1768910454662,0.27569629,3112.1,3110.5,0.30227646]
[1768910454862,0.27814322,3112.1,3110.5,0.30227646]
[1768910459068,0.27814322,3112.1,3110.4,0.16091]
[1768910460078,0.27569629,3111.9,3110.1,0.30227646]
[1768910460374,0.27569629,3111.9,3109.8,0.16094]
[1768910460665,0.27569629,3111.5,3109.8,0.16094]
[1768910461272,0.27569629,3111.1,3109.3,0.30227646]
[1768910461460,0.27569629,3111.1,3109.2,0.16098]
[1768910461664,0.27569629,3111.1,3108.9,0.30227646]
[1768910461665,0.27569629,3111.0,3108.9,0.30227646]
[1768910461965,0.27569629,3111.0,3109.0,14.9]
[1768910462266,0.27569629,3110.7,3109.0,14.9]
[1768910463773,0.27569629,3110.7,3109.0,15.20227646]
[1768910464066,0.27569629,3110.7,3109.1,0.30227646]
[1768910470878,0.27569629,3110.7,3109.1,2.83527646]
[1768910473681,0.27569629,3110.4,3108.6,0.00237781]
[1768910473887,0.27569629,3110.4,3108.6,2.53737781]
[1768910474186,0.27569629,3110.4,3108.7,14.9]
[1768910475983,0.27569629,3110.0,3108.6,0.00237781]
[1768910476977,0.27569629,3109.7,3108.6,0.00237781]
[1768910477177,0.27952651,3109.7,3107.8,0.16105]
[1768910477388,0.27952651,3109.7,3107.9,14.9]
[1768910478285,0.27952651,3109.7,3107.9,14.90306184]
[1768910478989,0.27952651,3109.7,3107.9,15.2053383]
[1768910481987,0.16096,3109.6,3107.9,15.2053383]
[1768910482187,0.27569629,3109.5,3107.9,15.2053383]
[1768910484396,0.00383022,3109.7,3108.0,0.28104664]
[1768910485000,0.00383022,3109.7,3108.2,0.28104664]
[1768910490006,0.00383022,3109.7,3108.2,2.82104664]
[1768910491302,0.00383022,3109.7,3108.3,0.28104664]
[1768910492601,0.00383022,3109.7,3108.4,0.28104664]
[1768910492801,0.00383022,3109.7,3108.4,2.82204664]
[1768910493599,0.16478022,3109.7,3108.4,2.82204664]
[1768910493907,0.44006355,3109.7,3108.2,2.54]
[1768910494407,0.44006355,3109.7,3108.2,2.82104664]
[1768910495001,0.00383022,3109.7,3108.3,0.28104664]
[1768910500816,0.27528333,3109.6,3108.2,2.54]
[1768910501207,0.27528333,3109.6,3107.9,0.28410848]
[1768910501408,0.43624333,3109.6,3108.0,14.9]
[1768910502416,0.43624333,3109.6,3108.0,15.18104664]
[1768910503416,0.43624333,3109.6,3108.1,0.27212088]
[1768910507020,1.2156824,3109.4,3108.1,0.27212088]
[1768910508008,0.28527978,3109.3,3107.9,0.00306184]
[1768910512928,1.2156824,3109.4,3108.1,0.27212088]
[1768910513130,0.00383022,3109.7,3108.4,0.27212088]
[1768910517830,1.2156824,3109.6,3108.3,1.2156824]
[1768910519133,1.49503719,3109.6,3108.0,2.9927576]
[1768910519428,1.49503719,3109.6,3108.0,4.20844]
[1768910521728,1.49503719,3109.6,3107.9,0.00306184]
[1768910521729,1.49503719,3109.3,3107.9,0.00306184]
[1768910521930,1.2156824,3109.0,3107.9,0.00306184]
[1768910522333,1.49503719,3109.0,3107.9,0.00306184]
[1768910522532,1.49503719,3108.9,3107.9,0.00306184]
[1768910523536,0.27935479,3108.9,3107.9,0.00306184]
[1768910524436,0.44033479,3109.3,3107.9,1.21874424]
[1768910525934,0.44033479,3109.3,3107.9,0.00306184]
[1768910527334,1.2156824,3109.1,3107.9,0.00306184]
[1768910528137,1.2156824,3109.0,3107.9,0.00306184]
[1768910530140,0.27935479,3109.2,3107.9,0.00306184]
[1768910530336,1.2156824,3109.1,3107.9,0.00306184]
[1768910531641,0.27935479,3109.2,3107.9,0.29378944]
[1768910534639,0.00383022,3109.7,3108.4,1.2156824]
[1768910535843,0.00383022,3109.7,3108.2,15.1907276]
[1768910536043,0.00383022,3109.7,3108.3,1.2156824]
[1768910537443,0.00383022,3109.7,3108.3,1.50641]
[1768910539644,0.00383022,3109.7,3108.3,0.2907276]
[1768910544344,3.219,3110.4,3108.0,14.9]
[1768910544345,0.1609,3110.7,3109.1,0.28587335]
[1768910544551,1.66464605,3110.7,3109.1,0.28587335]
[1768910545347,1.50374605,3110.7,3109.1,0.28587335]
[1768910545548,1.50693148,3110.7,3109.1,0.28587335]
[1768910546353,1.50693148,3110.7,3109.1,1.50155575]
[1768910548252,1.50693148,3110.7,3109.2,15.18587335]
[1768910549759,1.50693148,3110.7,3109.2,16.40155575]
[1768910555063,0.29124908,3110.7,3109.3,0.28587335]
[1768910555369,0.00318543,3110.7,3109.3,0.28587335]
[1768910556767,0.00318543,3110.7,3109.6,0.28587335]
[1768910557068,0.00318543,3110.7,3109.8,1.2156824]
[1768910557267,0.00318543,3110.7,3109.8,1.50155575]
[1768910557468,0.00318543,3110.7,3109.9,0.28587335]
[1768910557865,1.2156824,3111.4,3109.9,0.28587335]
[1768910558169,1.3765424,3111.4,3109.9,0.28587335]
[1768910558865,1.38010768,3111.4,3109.9,0.28587335]
[1768910561172,1.66817133,3111.4,3109.9,0.28587335]
[1768910566380,1.66817133,3111.4,3110.0,1.2156824]
[1768910566678,1.66817133,3111.4,3110.0,1.50310911]
[1768910568880,0.45248893,3111.4,3110.0,0.28742671]
[1768910569681,0.44631761,3111.3,3109.6,0.28742671]
[1768910580996,0.28544761,3111.3,3109.6,0.28742671]
[1768910581889,0.28544761,3111.3,3109.6,0.44837671]
[1768910582090,0.28544761,3111.3,3109.7,0.29288967]
[1768910582491,0.00356528,3111.4,3110.1,0.29288967]
[1768910582693,0.00356528,3111.4,3110.3,0.29288967]
[1768910583201,0.00356528,3111.4,3110.4,0.29288967]
[1768910583403,0.00356528,3111.4,3110.6,0.29288967]
[1768910586894,0.00356528,3111.4,3110.5,14.9]
[1768910594205,0.00356528,3111.4,3110.3,0.45380967]
[1768910594406,0.00356528,3111.4,3110.2,2.549]
[1768910595299,0.29563308,3111.4,3110.1,0.00322489]
[1768910595601,0.29563308,3111.4,3110.2,2.549]
[1768910595904,0.29563308,3111.4,3110.1,0.00322489]
[1768910596308,0.2920678,3111.2,3110.1,0.00322489]
[1768910611316,0.00356528,3111.4,3110.1,0.27818151]
[1768910612619,0.00356528,3111.4,3110.1,0.43911151]
[1768910619322,0.00356528,3111.4,3110.2,0.27495662]
[1768910630931,0.00356528,3111.4,3110.4,1.2138577]
[1768910633425,0.00356528,3111.4,3110.4,1.49342337]
[1768910633925,0.00356528,3111.4,3110.6,1.2138577]
[1768910635935,1.789,3112.7,3110.1,0.00322489]
[1768910635936,0.28115336,3112.2,3110.9,1.2138577]
[1768910636634,0.28115336,3112.2,3110.7,15.34046567]
[1768910636841,0.28115336,3112.2,3110.9,1.2138577]
[1768910637136,0.2849905,3112.2,3110.9,1.2138577]
[1768910639731,0.2849905,3112.2,3110.7,15.34046567]
[1768910639933,0.2849905,3112.2,3110.9,1.2138577]
[1768910640141,1.4988482,3112.2,3110.9,1.2138577]
[1768910642844,1.4988482,3112.2,3110.8,1.2138577]
[1768910645245,1.4988482,3112.2,3110.7,16.55432337]
[1768910645850,1.49501106,3111.9,3110.7,14.9]
[1768910647653,0.28115336,3111.9,3110.7,14.9]
[1768910647851,1.21769484,3112.2,3110.7,14.9]
[1768910648150,1.4988482,3112.2,3110.7,16.1138577]
[1768910651254,0.2849905,3112.2,3110.8,0.27956567]
[1768910651445,0.2849905,3112.2,3110.9,1.2138577]
[1768910658559,0.00383714,3112.2,3111.0,0.27956567]
[1768910664359,0.00383714,3112.2,3111.4,1.2138577]
[1768910664867,0.16077,3112.9,3111.7,1.2138577]
[1768910665757,0.16453174,3112.9,3111.7,1.2138577]
[1768910665953,0.00376174,3112.9,3111.7,1.2138577]
[1768910667359,0.00376174,3112.9,3111.7,1.43730666]
[1768910667753,0.00376174,3112.9,3112.0,1.43730666]
[1768910668055,0.00376174,3112.9,3112.3,1.2138577]
[1768910668257,0.00376174,3112.9,3112.3,1.21668787]
[1768910668457,1.2138577,3113.7,3112.3,1.21668787]
[1768910668659,1.44449375,3113.7,3112.3,1.21668787]
[1768910669154,1.44449375,3113.7,3112.3,0.00283017]
[1768910669361,1.44744243,3113.7,3112.3,0.00283017]
[1768910670154,1.2138577,3113.4,3112.3,0.00283017]
[1768910670461,1.44449375,3113.4,3112.3,0.00283017]
[1768910671358,0.23063605,3113.3,3112.3,0.00283017]
[1768910672261,0.23063605,3113.2,3112.3,0.00283017]
[1768910672454,0.16074,3113.5,3112.3,0.00283017]
[1768910672654,1.2138577,3113.2,3112.3,0.00283017]
[1768910675065,0.16074,3113.5,3112.3,0.00283017]
[1768910675255,1.2138577,3113.3,3112.3,0.00283017]
[1768910678469,1.44449375,3113.3,3112.3,0.00283017]
[1768910680570,1.2138577,3113.1,3112.3,0.00283017]
[1768910691884,1.2138577,3113.2,3112.3,0.00283017]
[1768910692182,1.42926912,3113.2,3112.3,0.00283017]
[1768910692876,0.21541142,3113.2,3112.3,0.00283017]
[1768910701684,0.20814908,3112.9,3111.4,5.77115921]
[1768910701889,0.20814908,3112.9,3111.2,0.19219378]
[1768910702089,0.20814908,3112.9,3111.3,14.9]
[1768910702292,0.20814908,3112.8,3111.3,14.9]
[1768910702590,0.20814908,3112.8,3111.3,14.90252732]
[1768910702889,0.20814908,3112.8,3111.3,0.00252732]
[1768910703089,0.36892908,3112.8,3111.3,0.00252732]
[1768910703288,0.20814908,3112.7,3111.3,0.00252732]
[1768910705195,0.20814908,3112.6,3111.3,0.00252732]
[1768910708793,0.20814908,3113.0,3111.5,1.40498758]
[1768910708988,0.20814908,3113.0,3111.3,0.00252732]
[1768910708989,0.20814908,3112.8,3111.3,0.00252732]
[1768910709188,0.20814908,3112.6,3111.3,0.00252732]
[1768910709994,0.36894908,3112.4,3111.3,0.00252732]
[1768910710295,0.20814908,3112.3,3111.3,0.00252732]
[1768910719703,0.20814908,3112.9,3111.3,0.00252732]
[1768910720592,0.20814908,3112.9,3111.3,1.21532112]
[1768910721298,0.20814908,3112.9,3111.3,0.00252732]
[1768910729209,0.20814908,3112.9,3111.4,14.9]
[1768910736011,0.36891908,3112.9,3111.4,14.9]
[1768910736207,0.18319355,3112.8,3111.4,14.9]
[1768910738807,0.18319355,3112.8,3111.3,0.16337732]
[1768910739215,0.18319355,3112.7,3111.3,0.16337732]
[1768910740210,0.18319355,3112.7,3111.3,0.00252732]
[1768910740913,0.18319355,3112.5,3111.3,0.00252732]
[1768910746418,0.16081,3112.2,3111.3,0.00252732]
[1768910747013,0.18319355,3112.5,3111.3,0.00252732]
[1768910754927,0.18319355,3112.5,3111.3,1.21565484]
[1768910755225,0.18319355,3112.5,3111.3,0.00252732]
[1768910755523,0.18319355,3112.5,3111.4,1.21312752]
[1768910762935,0.18319355,3112.5,3111.3,0.00252732]
[1768910763130,0.18319355,3112.5,3111.5,1.21312752]
[1768910763928,0.16446933,3112.9,3111.7,1.21312752]
[1768910764130,0.16446933,3113.3,3112.0,1.21312752]
[1768910769240,0.16446933,3113.3,3112.0,1.37639733]
[1768910769435,0.16446933,3113.3,3112.0,0.16326981]
[1768910769643,0.16446933,3113.3,3112.3,1.21312752]
[1768910773747,0.16446933,3113.3,3112.2,1.21312752]
[1768910780861,1.37386752,3113.5,3112.2,1.21312752]
[1768910781060,0.16074,3113.5,3112.2,1.21312752]
[1768910781450,0.16074,3113.5,3112.2,1.37639733]
[1768910782257,0.16074,3113.5,3112.3,14.9]
[1768910785467,0.16074,3113.5,3112.3,15.0523593]
[1768910786261,0.16074,3113.5,3112.3,0.1523593]
[1768910789265,0.16074,3113.5,3112.0,14.9]
[1768910789266,0.16074,3113.5,3112.0,15.0523593]
[1768910789564,0.16074,3113.5,3112.3,1.21312752]
[1768910790074,0.16074,3113.5,3112.3,1.36548682]
[1768910791174,0.16074,3113.5,3112.4,0.1523593]
[1768910794874,0.00294868,3113.7,3112.4,0.1523593]
[1768910797770,0.00294868,3113.7,3112.6,1.21312752]
[1768910800683,0.00294868,3113.7,3112.4,1.36548682]
[1768910803582,0.00294868,3113.7,3112.5,0.14988719]
[1768910805485,0.00294868,3113.7,3112.6,1.21312752]
[1768910809587,0.00294868,3113.7,3112.6,1.36301471]
[1768910810582,0.00294868,3113.7,3112.0,14.9]
[1768910810583,0.00294868,3113.7,3112.9,1.36301471]
[1768910812186,0.00294868,3113.7,3112.6,1.21312752]
[1768910813378,0.16074,3113.6,3112.5,0.14988719]
[1768910813584,1.37386752,3113.6,3112.5,0.14988719]
[1768910814190,0.16074,3113.6,3112.5,0.14988719]
[1768910815586,0.00294868,3113.7,3112.5,1.36301471]
[1768910816895,0.00294868,3113.7,3112.5,0.14988719]
[1768910820993,0.16367868,3113.7,3112.0,15.06082]
[1768910821296,0.31998853,3113.5,3112.1,0.16047986]
[1768910821989,0.31998853,3113.5,3112.0,17.408]
[1768910821990,0.16075,3113.4,3112.0,17.408]
[1768910822191,0.16075,3113.4,3112.0,14.9]
[1768910822192,0.31999853,3113.4,3112.0,14.9]
[1768910822692,0.15924853,3113.4,3112.0,14.9]
[1768910824798,0.31998853,3113.4,3112.0,14.9]
[1768910825190,0.00294868,3113.7,3111.7,0.16047986]
[1768910825191,0.16077,3113.0,3111.7,0.16047986]
[1768910825395,0.15924853,3112.8,3111.3,0.16300718]
[1768910825790,0.15924853,3112.8,3111.4,14.9]
[1768910826809,0.15924853,3112.8,3111.3,0.16300718]
[1768910827105,0.32002853,3112.8,3111.3,15.06300718]
[1768910829695,0.32002853,3112.8,3111.4,0.16047986]
[1768910830295,0.16078,3112.8,3111.4,0.16047986]
[1768910831496,0.16074,3113.4,3111.4,0.16047986]
[1768910832402,0.16075,3113.3,3111.4,0.16047986]
[1768910834506,0.16075,3113.3,3111.4,0.32132986]
[1768910834711,0.16075,3113.3,3111.6,0.16047986]
[1768910834898,0.16072,3113.9,3112.0,0.16047986]
[1768910835804,0.15924853,3114.0,3112.0,0.16047986]
[1768910836399,0.16367868,3113.7,3112.0,0.16047986]
[1768910836996,0.15924853,3113.4,3111.7,4.18324471]
[1768910837201,0.16075,3113.3,3111.8,0.16047986]
[1768910839014,0.15924853,3113.4,3111.8,0.16047986]
[1768910843716,0.00294868,3113.7,3111.8,0.16047986]
[1768910844018,0.00294868,3113.7,3111.9,0.14220854]
[1768910844219,0.00294868,3113.7,3112.0,0.14220854]
[1768910845417,0.00294868,3113.7,3112.2,0.14220854]
[1768910846311,0.00294868,3113.7,3112.3,0.14220854]
[1768910846917,0.00294868,3113.7,3112.5,0.14220854]
[1768910853019,0.14614638,3113.7,3112.4,14.9]
[1768910853620,0.14614638,3113.7,3112.2,0.16081]
[1768910853919,0.14614638,3113.7,3112.2,0.30301854]
[1768910854113,0.14614638,3113.7,3112.3,14.9]
[1768910858823,0.14614638,3113.7,3112.3,15.04220854]
[1768910859325,0.14614638,3113.7,3112.4,0.14220854]
[1768910859523,0.00294868,3113.7,3112.4,0.14220854]
[1768910860318,0.00294868,3113.7,3112.6,0.14220854]
[1768910864926,0.16072,3113.8,3112.6,0.14220854]
[1768910865520,0.16072,3113.8,3112.7,2.518]
[1768910865727,0.16488473,3113.8,3112.7,2.66093042]
[1768910865927,0.16488473,3113.8,3112.8,0.14293042]
[1768910866322,0.00416473,3113.8,3112.8,0.14293042]
[1768910868622,0.1607,3114.4,3112.8,0.14293042]
[1768910869124,0.15144668,3114.7,3113.1,0.14293042]
[1768910869323,0.16066,3115.0,3113.1,0.14293042]
[1768910869529,0.2991956,3114.9,3113.1,0.14293042]
[1768910869730,0.00266726,3114.9,3113.1,0.14293042]
[1768910870831,0.00266726,3114.9,3113.2,0.14293042]
[1768910871025,0.00266726,3114.9,3113.2,0.30368042]
[1768910871234,0.00266726,3114.9,3113.5,0.14293042]
[1768910871519,0.00266726,3114.9,3113.7,0.14293042]
[1768910871726,0.00266726,3114.9,3113.8,0.14293042]
[1768910875439,0.00266726,3114.9,3113.8,2.66493042]
[1768910878834,0.16061,3116.0,3113.9,0.15338077]
[1768910879029,0.16061,3116.0,3113.8,2.522]
[1768910879030,0.16062,3115.9,3114.5,0.15338077]
[1768910879333,1.2109378,3115.5,3114.2,1.955]
[1768910879530,1.36247738,3115.5,3114.2,1.955]
[1768910879932,1.36523777,3115.5,3114.2,1.955]
[1768910880437,1.2109378,3115.3,3114.2,1.955]
[1768910880736,1.2109378,3115.0,3113.7,15.05338077]
[1768910881039,1.2109378,3115.0,3113.7,17.57938077]